Cogmind - Beta 10.2 --- EXPLORER MODE // 2021.03.01 @ 13:39:31 Player: ZEUSDEX Result: Self-destructed Performance ------------- Evolutions (1) 500 Regions Visited (2) 400 Robots Destroyed (20) 100 Value Destroyed (267) 267 Prototype IDs (2) 40 Alien Tech Used (0) 0 Bonus (0) 0 TOTAL SCORE: 1307 Bonus ------- None Cogmind --------- Core Integrity 112/400 Matter 245/300 Energy 250/250 System Corruption 1% Temperature Cool (0) Movement Hovering (120) Ox1 Location -9/Materials Parts ------- > --- POWER (1) -------- Ion Engine > --- PROPULSION (2) --- Hover Unit > --- UTILITY (5) ------ Visual Processing Unit Signal Interpreter Improved Terrain Scanner Targeting Computer ECM Suite > --- WEAPON (2) ------- Heavy Assault Rifle > --- INVENTORY (4) ---- Light Ion Engine High-capacity Battery (400) Structural Scanner Peak State ------------ > --- POWER ------------ Light Ion Engine > --- PROPULSION ------- Hover Unit > --- UTILITY ---------- Visual Processing Unit Signal Interpreter Improved Terrain Scanner Targeting Computer ECM Suite > --- WEAPON ----------- Light EM Pulse Cannon Mining Laser > --- INVENTORY -------- High-capacity Battery Structural Scanner [Rating: 12] Favorites ----------- Power Light Ion Engine Engine Light Ion Engine Propulsion Hover Unit Hover Unit Hover Unit Utility Targeting Computer Device Improved Terrain Scanner Processor Targeting Computer Weapon Light Assault Rifle Energy Cannon Light EM Pulse Cannon Ballistic Gun Light Assault Rifle Special Weapon Mining Laser Build | -11 -10 -9 ------- Run | Scr Mat Mat Slots Evolved 3 | . 1 2 Power . | . . . Propulsion . | . . . Utility 3 | . 1 2 Weapon . | . . . Parts Attached 17 | 4 7 6 Power 3 | . 2 1 Engine 3 | . 2 1 Core . | . . . Reactor . | . . . Propulsion 1 | . 1 . Treads . | . . . Leg . | . . . Wheel . | . . . Hover 1 | . 1 . Flight . | . . . Utility 8 | 2 3 3 Device 4 | . 3 1 Storage . | . . . Processor 4 | 2 . 2 Hackware . | . . . Protection . | . . . Artifact . | . . . Weapon 5 | 2 1 2 Energy Gun . | . . . Energy Cannon 1 | . . 1 Ballistic Gun 3 | 2 . 1 Ballistic Cannon . | . . . Launcher . | . . . Special Weapon 1 | . 1 . Impact Weapon . | . . . Slashing Weapon . | . . . Piercing Weapon . | . . . Special Melee Weapon . | . . . Unidentified Prototypes . | . . . Parts Lost 4 | . . 4 Power . | . . . Propulsion . | . . . Utility 1 | . . 1 Weapon 3 | . . 3 Highest Loss Streak 2 | . . 2 Average Slot Usage (%) 73 | . 68 77 Engine 8 | . 6 10 Hover 8 | . 6 10 Device 15 | . 12 17 Processor 23 | . 25 23 Ballistic Gun 10 | . 13 8 Special Weapon 6 | . 4 7 Naked Turns . | . . . Heaviest Build 12 | 2 6 12 Greatest Support 6 | 3 6 6 Greatest Overweight (x) 1 | . . 1 Average Overweight (x) . | . . . Largest Inventory Capacity 4 | 4 4 4 Average Capacity 4 | 4 4 4 Most Carried 4 | 2 4 4 Average Carried 2 | . 3 3 Final Capacity 4 | 4 4 4 Final Carried 4 | 2 4 3 Class Distribution -------------------- 71% | Hacker-Mutant 28% | Scavenger-Mutant Dominant Class ---------------- Hacker-Mutant | -10/Materials Scavenger-Mutant | -9/Materials Resources | -11 -10 -9 ----------- Run | Scr Mat Mat Matter Collected 415 | 274 93 48 Remotely . | . . . Salvage Created 624 | 191 127 306 Parts 45 | 19 8 18 Haulers Intercepted 2 | . 1 1 Recyclers Shooed 2 | . 2 . Parts Field Recycled . | . . . Retrieved Matter . | . . . Parts Self-Destructed . | . . . Prevented . | . . . Kills | -11 -10 -9 ------- Run | Scr Mat Mat Combat Hostiles Destroyed 5 | . . 5 Melee 1 | . . 1 Guns 2 | . . 2 Cannons 1 | . . 1 Classes Destroyed 8 | 3 2 3 Worker 4 | 2 . 2 Tunneler 5 | 5 . . Hauler 2 | . 1 1 Recycler 2 | 1 1 . Watcher 2 | . 1 1 Swarmer 1 | . . 1 Grunt 3 | . . 3 Sentry 1 | . . 1 Best Kill Streak 5 | 4 1 5 Combat Bots Only 3 | . . 3 Max Kills in Single Turn 1 | 1 1 1 Gunslinging . | . . . Exploded . | . . . Melee 1 | . . 1 Uniques/NPCs Destroyed . | . . . Combat | -11 -10 -9 -------- Run | Scr Mat Mat Damage Taken 655 | . . 655 Core 288 | . . 288 Absorbed by Shields . | . . . Core Remaining (%) 100 | 100 100 . Volleys Fired 80 | 17 26 37 Largest 2 | 2 1 2 Hottest 120 | 40 100 120 Shots Fired 99 | 34 26 39 Gun 79 | 34 23 22 Cannon 7 | . . 7 Launcher . | . . . Special 13 | . 3 10 Kinetic 79 | 34 23 22 Thermal 13 | . 3 10 Explosive . | . . . Electromagnetic 7 | . . 7 Robot Hit Streak 31 | 30 31 30 Robot Miss Streak 1 | . 1 1 Penetration Max . | . . . Secondary Targets . | . . . Shots Hit Robots 83 | 30 22 31 Core Hits 34 | 15 7 12 Critical Hits 1 | . 1 . Critical Kills . | . . . Critical Parts Destroyed 1 | . 1 . Melee Attacks . | . . . Impact . | . . . Slashing . | . . . Piercing . | . . . Sneak Attacks . | . . . Combat Hostiles . | . . . Follow-up Attacks . | . . . Damage Inflicted 906 | 246 178 482 Guns 696 | 246 178 272 Cannons 150 | . . 150 Explosions . | . . . Melee . | . . . Ramming 12 | . . 12 Kinetic 696 | 246 178 272 Thermal 48 | . . 48 Explosive . | . . . Electromagnetic 150 | . . 150 Impact . | . . . Slashing . | . . . Piercing . | . . . Highest Corruption 1 | . . 1 Average Corruption 1 | . . 1 Corruption Purged . | . . . Effects 3 | . . 3 Message Errors 2 | . . 2 Targeting Errors 1 | . . 1 Overload Shots . | . . . Overflow Damage 21 | . . 21 Projectiles 21 | . . 21 Explosions . | . . . Melee . | . . . Knockbacks . | . . . Impact . | . . . Kinetic . | . . . Secondary . | . . . Self-Inflicted Damage 5 | . . 5 Shots . | . . . Rammed 3 | . . 3 Targets Rammed 3 | . . 3 Kicked . | . . . Crushed . | . . . Highest Temperature 46 | . 24 46 Average Temperature 13 | . 9 14 Received Heat Transfer 240 | . . 240 Siege Activations . | . . . Robots Corrupted 1 | . . 1 Combat Hostiles 1 | . . 1 Parts Fried 1 | . . 1 Impact Corruptions . | . . . Robots Melted . | . . . Combat Hostiles . | . . . Parts Melted . | . . . Heat Transferred 100 | . . 100 Parts Sabotaged . | . . . Parts Stolen . | . . . Parts Stripped . | . . . Power Chain Reactions . | . . . Missiles Intercepted . | . . . Alert | -11 -10 -9 ------- Run | Scr Mat Mat Peak Influence 319 | 40 112 319 Initial 33 | . 19 33 Average 92 | 16 54 151 Maximum Alert Level 1 | . . 1 Low Security (%) 87 | 100 100 72 Level 1 12 | . . 28 Level 2 . | . . . Level 3 . | . . . Level 4 . | . . . Level 5 . | . . . High Security . | . . . Max Security . | . . . Squads Dispatched 1 | . . 1 Investigation . | . . . Extermination . | . . . Reinforcement 1 | . . 1 Assault . | . . . Garrison . | . . . Intercept . | . . . Construction Impeded . | . . . Haulers Reinforced . | . . . Stealth | -11 -10 -9 --------- Run | Scr Mat Mat Distress Signals 1 | . . 1 Communications Jammed . | . . . Distress Signals . | . . . Times Spotted 21 | . 3 18 Peak Tracking Total 5 | . 3 5 Tactical Retreats 4 | . 1 3 Traps | -11 -10 -9 ------- Run | Scr Mat Mat Traps Triggered 2 | . 1 1 Indirectly . | . . . Trap Hack Attempts . | . . . Triggered . | . . . Disarmed . | . . . Reprogrammed . | . . . Reused . | . . . Traps Extracted . | . . . Installed . | . . . Triggered 1 | . . 1 Machines | -11 -10 -9 ---------- Run | Scr Mat Mat Machines Disabled 1 | . . 1 Max in Single Turn 1 | . . 1 Machines Sabotaged . | . . . Garrisons Compromised . | . . . Overloaded Fab Kills . | . . . Fab Network Shutdowns . | . . . Hacking | -11 -10 -9 --------- Run | Scr Mat Mat Machines Accessed 9 | . 6 3 Terminals 9 | . 6 3 Fabricators . | . . . Repair Stations . | . . . Recycling Units . | . . . Scanalyzers . | . . . Garrison Access . | . . . Total Hacks 30 | . 19 11 Successful 19 | . 12 7 Failed 11 | . 7 4 Catastrophic 3 | . 3 . Database Lockouts . | . . . Manual 24 | . 16 8 Terminals 30 | . 19 11 Fabricators . | . . . Repair Stations . | . . . Recycling Units . | . . . Scanalyzers . | . . . Garrison Access . | . . . Terminal Hacks 12 | . 8 4 Prototype ID Bank 1 | . 1 . Level Access Points 2 | . 1 1 Terminal Index 2 | . 1 1 Locate Traps 1 | . 1 . Hauler Manifests 1 | . . 1 Registered Components 2 | . 1 1 Registered Prototypes 1 | . 1 . Zone Layout 2 | . 2 . Fabricator Hacks . | . . . Repair Station Hacks . | . . . Recycling Unit Hacks . | . . . Scanalyzer . | . . . Garrison Access Hacks . | . . . Unauthorized Hacks 7 | . 4 3 Terminals 7 | . 4 3 Botnet 7 | . 4 3 Fabricators . | . . . Repair Stations . | . . . Recycling Units . | . . . Scanalyzers . | . . . Garrison Access . | . . . Data Cores Recovered . | . . . Used . | . . . Hacking Detections 8 | . 5 3 Full Trace Events . | . . . Feedback Events . | . . . Feedback Blocked . | . . . Robot Schematics Acquired . | . . . Robots Built . | . . . Matter . | . . . Time . | . . . Total Robot Build Rating . | . . . Part Schematics Acquired . | . . . Parts Built . | . . . Matter . | . . . Time . | . . . Total Part Build Rating . | . . . Parts Repaired . | . . . Time . | . . . Parts Recycled . | . . . Recycled Matter . | . . . Retrieved Matter . | . . . Retrieved Components . | . . . Parts Scanalyzed . | . . . Part Schematics Acquired . | . . . Parts Damaged . | . . . Bothacking | -11 -10 -9 ------------ Run | Scr Mat Mat Used RIF Installer . | . . . Robots Hacked . | . . . Non-combat . | . . . Combat . | . . . Robot Hacks Applied . | . . . Relay Couplers Released . | . . . Robots Rewired . | . . . Allies Hacked . | . . . Hacks Repelled . | . . . Allies | -11 -10 -9 -------- Run | Scr Mat Mat Total Allies . | . . . Largest Group . | . . . Highest-Rated Group . | . . . Highest-Rated Ally . | . . . Total Orders . | . . . Ally Attacks . | . . . Total Damage . | . . . Kills . | . . . Allies Corrupted . | . . . Allies Melted . | . . . Intel | -11 -10 -9 ------- Run | Scr Mat Mat Robot Analysis Total . | . . . Derelict Logs Recovered . | . . . Drone Launches . | . . . Drone Recoveries . | . . . Exploration | -11 -10 -9 ------------- Run | Scr Mat Mat Turns Passed 721 | 113 283 325 Spaces Moved 696 | 87 382 227 Core 288 | 87 201 . Treads . | . . . Legs . | . . . Wheels . | . . . Hover 408 | . 181 227 Flight . | . . . Fastest Speed 50 | 50 50 60 Average Speed 64 | 50 54 86 Slowest Speed 120 | 50 60 120 Overloaded Moves . | . . . Propulsion Burnouts . | . . . Robots Hopped . | . . . Cave-ins Triggered 1 | . . 1 Exploration Rate (%) 30 | 3 58 30 Regions Visited 2 Branch Regions . Pre-discovered Areas . | . . . Known Exits Taken 2 | 1 1 . Unknown Exits Taken . | . . . Scrap Searched . | . . . Spaces Dug 10 | . 3 7 Terrain Destroyed 10 | . 3 7 Melee . | . . . Projectile 10 | . 3 7 AOE . | . . . Terrain Rammed . | . . . Walls Destroyed . | . . . Machines Disabled . | . . . Actions | -11 -10 -9 --------- Run | Scr Mat Mat Total 848 | 126 428 294 Wait 42 | 17 4 21 Move 694 | 86 381 227 Hop . | . . . Pick Up 8 | 2 6 . Fast Attach 11 | 4 4 3 Attach 5 | . 3 2 Detach 1 | . 1 . Swap 1 | . . 1 Drop 3 | . 3 . Fire 80 | 17 26 37 Melee . | . . . Ram 3 | . . 3 Kick . | . . . Crush . | . . . Escape Stasis . | . . . Rewire . | . . . Trap . | . . . Miscellaneous . | . . . Route ------- -11/Scrapyard -10/Materials (discovered 3 exits: *Mat x3) -9/Materials (discovered 4 exits: Mat x3 / *Min) History --------- Turn | Location | Event 3 | -11/Scrapyard | Identified exit to Materials 3 | -11/Scrapyard | Discovered exit to Materials (range 15) 114 | -11/Scrapyard | Entered Materials 114 | -10/Materials | Evolved 1 slot: Utility x1 158 | -10/Materials | Identified exit to Materials 308 | -10/Materials | Build established: Hacker-Mutant 397 | -10/Materials | Entered another Materials area 397 | -9/Materials | Evolved 2 slots: Utility x2 412 | -9/Materials | Identified exit to Materials 437 | -9/Materials | Crushed by falling debris 437 | -9/Materials | Core integrity fell below 50% 540 | -9/Materials | Identified exit to Mines 540 | -9/Materials | Discovered exit to Mines (range 8) 722 | -9/Materials | Self-destructed Last Messages --------------- 00649_ G-34 Mercenary destroyed. 00650_ K-01 Serf collects debris. 00657_ K-01 Serf destroyed. 00658_ Acquired 15 matter. 00658_ R-06 Scavenger collects Med. Matter Pod. 00660_ K-01 Serf collects debris. 00661_ K-01 Serf destroyed. 00668_ Acquired 25 matter. 00671_ K-01 Serf collects debris. 00703_ R-06 Scavenger inserts Wheel into recycling unit. 00703_ K-01 Serf cleans the Machine. 00707_ W-16 Scout distress signal alerts nearby ally. 00707_ A-02 Transporter destroyed. 00708_ K-01 Serf cleans the Machine. 00710_ K-01 Serf collects debris. 00715_ R-06 Scavenger collects Ion Engine. 00718_ R-06 Scavenger collects Weight Redist. System. 00718_ R-06 Scavenger collects Lgt. Treads. 00719_ S-10 Pest destroyed. 00719_ K-01 Serf cleans the Machine. Map ----- +----------------------------------------------------+ | ???????????????# # # "" """ """ #????????? | | ?????????????### #?""" # """ """ """ #????????? | | ???????????????# #?""" !# """ """ """ #????????? | | ???????????????# #??"" # #????????? | | ????????????? ? #?? #######+############???? | | ?????????????? #???#?##????# +%= #???? | | ????????????? #???????????# *# T #???? | | ?????????????### #???????????# /% #???# | | ???????????????# #????#? ? ??#% # #???? | | ???????????????# ##???# ????# ###########???? | | ???????????????# ?????# "R??# #########?????? | | ???????????????# ???#?# " " # # #?????? | | ???????????????? ?????# + + #?????? | | ???????????????#????????# # # ##????# | | ?????????????????????########### ###+###+#?????# | | ?????????????????????# #?????? | | ?????????????????????# #?????? | | ?????????????????????# #?????? | | ?????????????????????# #######+######### #?????? | | ????????????????????## ####= ##?# #?????? | | ???????????"?????? ?# """# "" ##?# #?????? | | ????????????????????# wk "# ""S ##?# #?????? | | ????????????????? ?## |"# "" #?? ??#??? | | ????????????????????# > ""# """ ##? ?????? | | ???????????????????## !"# """ ## ?????? | | ????????????????????# k@ "# """ #?? ?#???? | | ????????????????????# """# #?? ?????? | | ????????????????????## ##############??#+#?????? | | ???????????????###+###Y # #?????????? | | ????????????? """ u + """"????? ?????? | | ????????????? "Y" # # "" [ """"????????????? | | ????????????# ???[ # % # "Y """"???????"????? | | ????????????????? ?#s #?"" ????????????? | | ???????????????? ??# #?? ?????????????? | | ?????????????? ""??# /#???###+###?????????????? | | ????????????? "???+^/%#???????????????????????? | | ????????????# ????# /!#???????????????????????? | | ????????????# ??????# /#???????????????????????? | | ????????????##???????# #???????????????????????? | | ????????????????????? ???????????????????????? | | ????????????????????? ???????????????????????? | | ????????????????????? ???????????????????????? | | ?????????????????????#####???????????????????????? | | ?????????????????????????????????????????????????? | | ?????????????????????????????????????????????????? | | ?????????????????????????????????????????????????? | | ?????????????????????????????????????????????????? | | ?????????????????????????????????????????????????? | | ?????????????????????????????????????????????????? | | ?????????????????????????????????????????????????? | +----------------------------------------------------+ Best States ------------- Heat Dissipation 28 Energy Generation 10 Energy Capacity 250 Matter Stores 300 Matter Capacity 300 Sight Range 18 Terrain Scan Range 16 Terrain Scan Density 60 ECM Strength 1 Resistance: KI 35 Resistance: TH 35 Resistance: EX 35 Resistance: EM 35 Resistance: I 35 Resistance: S 35 Resistance: P 35 Evasion (%) 53 Targeting Accuracy 5 Offensive Hacking 20 Item Schematics ----------------- None Robot Schematics ------------------ None Fabricated ------------ Nothing Alien Tech Used ----------------- None Achievements -------------- None Challenges ------------ None Game ------ Seed LinkedMissileFlakker Manual? 0 Play Time 00:13:53 Cumulative 45.7 hours Start 2021.03.01 @ 13:29:46 End 2021.03.01 @ 13:39:31 Sessions 1 Manual Loads 0 Difficulty Explorer Special Mode None Game No. 76 Rogue 55 Adventurer 18 Explorer 3 Win Type - Total 1 Types 1/0/0/0/0/0/0/0/0 Lore% 30 Gallery% 51 Achievement% 37 Wizard Run 0 Options --------- ASCII 0 Keyboard 1 Movement Numpad Keybinds 0 Fullscreen 1 Font 20/Cog Map View 66x50 Tactical HUD 1 Map Filters NONE Filters NONE Steam 1 RUN: 1a98cb49-ac23-4d51-b187-1ed605fa2d62